bitfinex-derivatives/quotes_ETHF0:USTF0_20250616
["timestamp","ask_amount","ask_price","bid_price","bid_amount"]
[1750065062866,8.03205,2628.1,2628.0,0.76096]
[1750065063070,6.6383,2628.1,2628.0,6.18474907]
[1750065063266,0.76091,2628.2,2628.1,0.76091]
[1750065063765,0.76092,2628.2,2628.1,0.76093]
[1750065063969,0.76093,2628.1,2628.0,6.18472907]
[1750065064476,0.76092,2628.2,2628.1,0.76093]
[1750065065372,0.76096,2628.0,2627.9,6.85534252]
[1750065066876,0.76096,2628.0,2627.9,9.72242803]
[1750065069278,0.76096,2628.0,2627.9,3.2078]
[1750065069580,0.76102,2627.8,2627.7,3.03351252]
[1750065069777,0.76105,2627.7,2627.6,5.48027252]
[1750065070078,0.76105,2627.7,2627.6,3.2078]
[1750065070674,0.76105,2627.7,2627.6,6.07488551]
[1750065071476,0.76103,2627.8,2627.7,0.76103]
[1750065072684,0.76105,2627.7,2627.6,9.10841803]
[1750065073389,0.76105,2627.7,2627.6,9.10842803]
[1750065074581,0.76105,2627.7,2627.6,8.34735803]
[1750065075086,0.76105,2627.7,2627.6,5.48027252]
[1750065075479,0.76105,2627.7,2627.6,3.2078]
[1750065075985,0.76105,2627.7,2627.6,4.72397256]
[1750065076784,0.76105,2627.7,2627.6,4.72402737]
[1750065077180,0.76105,2627.7,2627.6,3.2078]
[1750065078487,0.76105,2627.7,2627.6,1.51640653]
[1750065078682,2.07755,2627.7,2627.6,1.51640653]
[1750065079984,2.07755,2627.7,2627.6,2.27748653]
[1750065080384,0.76096,2628.1,2628.0,0.76095]
[1750065080685,0.76091,2628.2,2628.1,0.76092]
[1750065080890,0.00571059,2628.3,2628.2,0.7609]
[1750065081080,0.00571059,2628.3,2628.2,4.27608551]
[1750065081984,0.00571059,2628.3,2628.2,5.79207201]
[1750065083099,3.2078,2629.2,2628.5,1.90202]
[1750065083283,3.96841,2629.2,2629.1,2.86708551]
[1750065083888,3.2078,2629.2,2629.1,3.62772551]
[1750065084189,3.96841,2629.2,2629.1,3.62772551]
[1750065084382,0.76067,2629.0,2628.9,0.00571059]
[1750065085786,0.76067,2629.0,2628.9,0.76641059]
[1750065085985,0.76067,2629.0,2628.9,0.00571059]
[1750065086390,2.06926,2629.1,2628.9,0.00571059]
[1750065086591,2.06926,2629.1,2629.0,2.86708551]
[1750065086790,0.76067,2629.0,2628.9,0.76640059]
[1750065087891,0.00571059,2629.4,2628.9,10.42322552]
[1750065088087,0.00571059,2629.4,2629.3,6.17810493]
[1750065089086,0.00571059,2629.4,2629.3,7.41050493]
[1750065089385,9.98621,2629.9,2629.8,0.76044]
[1750065089695,0.76044,2629.8,2629.6,6.17799493]
[1750065090188,0.76047,2629.7,2629.5,0.76051]
[1750065090390,0.7605,2629.6,2629.5,0.76051]
[1750065091186,0.7605,2629.6,2629.4,11.23475493]
[1750065091388,0.76052,2629.6,2629.4,11.23475493]
[1750065091585,0.76053,2629.5,2629.4,3.8243]
[1750065091781,0.76059,2629.3,2629.2,34.5]
[1750065091987,6.017,2629.5,2628.9,3.21351059]
[1750065092192,0.76067,2629.0,2628.9,3.21351059]
[1750065093077,0.76067,2629.0,2628.9,0.00571059]
[1750065099494,0.76067,2629.0,2628.9,1.33851059]
[1750065100093,0.76067,2629.0,2628.9,2.09921059]
[1750065100293,0.76067,2629.0,2628.9,1.33851059]
[1750065101102,0.76067,2629.0,2628.9,2.09921059]
[1750065101399,0.76067,2629.0,2628.9,1.33851059]
[1750065102205,0.76067,2629.0,2628.9,2.09921059]
[1750065102400,0.76067,2629.0,2628.9,1.33851059]
[1750065103102,0.76067,2629.0,2628.9,2.09921059]
[1750065103304,0.76067,2629.0,2628.9,1.33851059]
[1750065105297,0.76066,2629.1,2628.9,4.54631059]
[1750065105610,0.76067,2629.0,2628.9,4.54631059]
[1750065106301,0.76067,2629.0,2628.9,5.30701059]
[1750065106606,0.76067,2629.0,2628.9,4.54631059]
[1750065107009,0.76067,2629.0,2628.9,5.30701059]
[1750065107204,0.76067,2629.0,2628.9,4.54631059]
[1750065109402,0.76067,2629.0,2628.9,5.30701059]
[1750065109901,0.76067,2629.0,2628.9,4.54631059]
[1750065110297,0.76067,2629.0,2628.9,5.67840718]
[1750065110699,0.76067,2629.0,2628.9,2.47060718]
[1750065110900,0.76067,2629.0,2628.9,1.33851059]
[1750065112101,0.76067,2629.0,2628.9,2.47060718]
[1750065118406,0.76067,2629.0,2628.9,1.33851059]
[1750065120405,0.76067,2629.0,2628.9,2.47060718]
[1750065122310,0.76067,2629.0,2628.9,1.33851059]
[1750065123005,0.76067,2629.0,2628.9,2.09921059]
[1750065123308,6.016,2629.1,2628.9,1.33851059]
[1750065123512,6.77664,2629.1,2629.0,1.51650156]
[1750065126215,6.77664,2629.1,2629.0,2.84930156]
[1750065127008,0.76064,2629.1,2629.0,2.84930156]
[1750065127516,0.76064,2629.1,2629.0,3.60997156]
[1750065127715,0.76064,2629.1,2629.0,6.4756584]
[1750065128212,0.76064,2629.1,2629.0,4.95915684]
[1750065128409,0.76064,2629.1,2629.0,4.95913684]
[1750065128816,0.76064,2629.1,2629.0,6.23123684]
[1750065129117,6.77663,2629.2,2629.1,0.76064]
[1750065129314,6.77663,2629.2,2629.1,2.27680867]
[1750065129815,0.76063,2629.2,2629.1,2.27680867]
[1750065130108,4.4691,2629.4,2629.1,1.51616867]
[1750065130310,30.0226,2629.3,2629.2,2.86568684]
[1750065131507,0.76061,2629.2,2629.1,2.15916867]
[1750065135811,0.76061,2629.2,2629.1,2.91980867]
[1750065136313,0.76061,2629.2,2629.1,1.40364]
[1750065136514,0.76061,2629.2,2629.1,3.66783319]
[1750065136821,33.1035,2629.4,2629.1,6.11499319]
[1750065136822,29.26,2629.4,2629.1,6.11499319]
[1750065137020,0.76059,2629.3,2629.2,3.62629684]
[1750065137713,0.00571059,2630.0,2629.3,1.90147]
[1750065137917,1.37971059,2630.0,2629.8,4.76205071]
[1750065138219,1.37971059,2630.0,2629.9,1.13594387]
[1750065138420,0.76041,2629.9,2629.8,1.76604387]
[1750065138920,0.61931059,2630.0,2629.8,2.52648387]
[1750065139511,0.00571059,2630.0,2629.9,0.76041]
[1750065140408,0.00571059,2630.0,2629.9,1.89635387]
[1750065140607,0.00571059,2630.0,2629.9,0.76041]
[1750065140812,0.00571059,2630.0,2629.8,2.52646387]
[1750065141021,0.76044,2629.8,2629.7,1.13594387]
[1750065141223,0.76053,2629.5,2629.4,1.13594387]
[1750065141419,29.271,2629.5,2629.2,1.13594387]
[1750065141718,0.76059,2629.3,2629.2,1.89655387]
[1750065141923,0.76059,2629.3,2629.2,1.13594387]
[1750065142115,6.14065684,2629.4,2629.2,1.89655387]
[1750065142422,0.76059,2629.3,2629.2,0.76061]
[1750065142615,6.14066684,2629.4,2629.2,0.76061]
[1750065142811,3.27498,2629.4,2629.2,0.76061]
[1750065143528,0.76059,2629.3,2629.2,0.76061]
[1750065143725,3.27498,2629.4,2629.2,0.76061]
[1750065143927,0.76059,2629.3,2629.2,0.76061]
[1750065144114,3.27498,2629.4,2629.2,0.76061]
[1750065144320,0.76059,2629.3,2629.2,0.76061]
[1750065144826,0.76059,2629.3,2629.1,5.10436387]
[1750065145622,0.76059,2629.3,2629.2,0.76061]
[1750065148126,3.27498,2629.4,2629.2,0.76061]
[1750065149236,3.27498,2629.4,2629.1,4.34374387]
[1750065149530,1.288,2629.4,2629.3,0.76059]
[1750065150229,2.04856,2629.4,2629.3,0.76059]
[1750065150530,1.288,2629.4,2629.3,0.76059]
[1750065151227,30.545,2629.4,2629.3,0.76059]
[1750065151427,23.242,2629.5,2629.3,2.86568684]
[1750065151628,24.00255,2629.5,2629.3,4.76221071]
[1750065151830,0.76056,2629.4,2629.3,4.76221071]
[1750065152017,0.76056,2629.4,2629.3,1.89652387]
[1750065152222,0.76056,2629.4,2629.3,0.76058]
[1750065153532,0.76056,2629.4,2629.2,4.08424387]
[1750065153732,0.76056,2629.4,2629.2,3.32364387]
[1750065153932,0.76056,2629.4,2629.3,0.76059]
[1750065154532,0.76056,2629.4,2629.2,4.08423387]
[1750065155729,0.76059,2629.3,2629.2,4.08423387]
[1750065156332,0.76059,2629.3,2629.2,5.41703387]
[1750065157633,0.76059,2629.3,2629.2,4.28109]
[1750065158934,3.62627684,2629.3,2629.2,6.84451563]
[1750065159137,11.83407684,2629.3,2629.2,5.7108]
[1750065163336,6.83407684,2629.3,2629.2,5.7108]
[1750065164141,11.83407684,2629.3,2629.2,5.1592]
[1750065164439,11.83407684,2629.3,2629.2,1.6361]
[1750065164636,0.76061,2629.2,2629.1,0.6672]
[1750065164843,0.76067,2629.0,2628.9,0.00571059]
[1750065165036,6.83415684,2629.0,2628.9,0.00571059]
[1750065165231,6.83415684,2629.0,2628.3,1.13371563]
[1750065165232,0.76085,2628.4,2628.3,1.13371563]
[1750065165440,0.7609,2628.2,2628.1,1.13371563]
[1750065165651,0.76096,2628.0,2627.9,1.13371563]
[1750065166155,0.76096,2628.0,2627.8,1.89471563]
[1750065166449,0.76095,2628.1,2627.8,3.99940247]
[1750065166642,0.76095,2628.1,2627.8,5.27550247]
[1750065166842,0.76095,2628.1,2627.9,0.76098]
[1750065167044,0.76096,2628.0,2627.8,6.03650247]
[1750065167246,0.76099,2627.9,2627.8,2.40981563]
[1750065167652,0.76099,2627.9,2627.8,3.17083563]
[1750065167848,0.76098,2628.0,2627.8,2.03712]
[1750065168253,0.76098,2628.0,2627.8,4.90280684]
[1750065168650,0.00571059,2628.2,2627.8,4.14178684]
[1750065168955,0.76098,2628.0,2627.8,4.90279684]
[1750065169857,0.76099,2627.9,2627.8,4.14178684]
[1750065170251,0.76099,2627.9,2627.8,1.2761]
[1750065172759,0.76099,2627.9,2627.8,4.14178684]
[1750065173258,0.76099,2627.9,2627.8,4.90280684]
[1750065173556,0.76099,2627.9,2627.8,4.14178684]
[1750065174057,0.76099,2627.9,2627.8,4.90280684]
[1750065175366,0.76099,2627.9,2627.8,4.14178684]
[1750065175567,0.76099,2627.9,2627.8,4.90280684]
[1750065175860,0.30590931,2628.2,2627.8,4.14178684]
[1750065176161,0.30590931,2628.2,2627.8,4.90279684]
[1750065176665,0.76098,2628.0,2627.8,4.90279684]
[1750065176863,0.76099,2627.9,2627.8,4.90279684]
[1750065177364,0.76099,2627.9,2627.8,4.14178684]
[1750065178264,0.76102,2627.8,2627.7,5.8027]
[1750065178565,0.76102,2627.8,2627.7,3.883]
[1750065179561,1.42111,2627.9,2627.7,4.64403]
[1750065179769,0.76099,2627.9,2627.8,3.62670684]
[1750065179967,0.76098,2628.0,2627.8,4.92490684]
[1750065180166,6.77698,2628.0,2627.9,2.01849]
[1750065180467,3.2078,2628.1,2628.0,0.76096]
[1750065180664,3.2078,2628.1,2628.0,4.88414684]
[1750065180863,0.00571059,2628.2,2628.1,0.76093]
[1750065181063,0.00571059,2628.2,2628.1,4.25011684]
[1750065182066,0.00571059,2628.2,2628.1,5.38383247]
[1750065183668,0.76082,2628.5,2628.1,10.39152684]
[1750065183874,0.76082,2628.5,2628.4,3.2078]
[1750065184565,0.76082,2628.5,2628.4,4.5271]
[1750065185464,0.76082,2628.5,2628.4,5.28793]
[1750065185971,0.76082,2628.5,2628.4,4.5271]
[1750065186172,2.86568684,2628.5,2628.2,1.79141002]
[1750065186368,0.642,2628.4,2628.1,5.72254002]
[1750065186664,0.7609,2628.2,2628.1,5.72254002]
[1750065186869,0.7609,2628.2,2628.1,4.59223]
[1750065187172,0.76081,2628.6,2628.1,3.8313]
[1750065187464,0.00571059,2628.7,2628.4,2.86568684]
[1750065187772,0.00571059,2628.7,2628.4,4.33947712]
[1750065188161,0.7608,2628.6,2628.5,0.76082]
[1750065189163,0.7608,2628.6,2628.5,1.89249712]
[1750065189859,0.7608,2628.6,2628.5,1.77227712]
[1750065190065,0.7608,2628.6,2628.5,0.6406]
[1750065192067,0.76082,2628.5,2628.4,4.33947712]
[1750065193270,2.86568684,2628.5,2628.3,1.13167712]
[1750065193472,1.41165,2628.4,2628.3,1.13167712]
[1750065193869,7.42765,2628.4,2628.3,1.13167712]
[1750065194270,7.42765,2628.4,2628.3,1.89255712]
[1750065194974,7.42765,2628.4,2628.3,1.13167712]
[1750065195373,0.76088,2628.3,2628.2,2.93198182]
[1750065195874,0.76088,2628.3,2628.2,1.41739]
[1750065201580,0.76088,2628.3,2628.2,1.7914349]
[1750065202374,0.76088,2628.3,2628.2,2.5523349]
[1750065202580,0.76088,2628.3,2628.2,1.4174]
[1750065203482,0.76088,2628.3,2628.2,5.79767866]
[1750065203684,0.76088,2628.3,2628.2,1.51459182]
[1750065203879,0.7609,2628.2,2628.1,1.13536506]
[1750065204077,0.7609,2628.2,2627.9,1.9196]
[1750065204078,0.76096,2628.0,2627.9,1.18123657]
[1750065204282,3.62664684,2628.0,2627.9,1.18123657]
[1750065204574,0.76105,2627.7,2627.6,1.14107565]
[1750065204776,6.77505,2627.7,2627.6,1.14107565]
[1750065204981,6.77505,2627.7,2627.6,0.00571059]
[1750065205281,6.77505,2627.7,2627.6,1.14130157]
[1750065210685,6.77505,2627.7,2627.6,0.00571059]
[1750065215887,0.6481,2628.2,2627.6,0.00571059]
[1750065215888,0.6481,2628.2,2627.6,7.21478841]
[1750065216089,0.6481,2628.2,2628.1,2.86568684]
[1750065216090,1.4247,2628.2,2628.1,2.86568684]
[1750065216692,0.76096,2628.0,2627.9,5.41945782]
[1750065216892,0.76096,2628.0,2627.9,6.64725782]
[1750065217691,0.76095,2628.1,2628.0,0.76096]
[1750065217998,6.6314,2628.5,2628.2,0.76089]
[1750065218198,3.8669,2628.6,2628.2,3.2078]
[1750065218390,0.7609,2628.3,2628.1,1.38372]
[1750065218790,0.7609,2628.2,2628.1,1.38371]
[1750065218990,0.7609,2628.2,2628.1,2.51685022]
[1750065219598,0.7609,2628.2,2628.1,1.38371]
[1750065219802,0.76089,2628.3,2628.2,0.7609]
[1750065219995,7.96118684,2628.6,2628.2,1.89420377]
[1750065220199,0.76086,2628.4,2628.3,0.76087]
[1750065220592,0.76086,2628.4,2628.3,1.89417377]
[1750065221189,0.76086,2628.4,2628.3,3.16937377]
[1750065221392,0.76084,2628.5,2628.4,0.76085]
[1750065221592,0.76084,2628.5,2628.3,2.40850377]
[1750065221791,0.76084,2628.5,2628.4,0.76085]
[1750065221992,0.76084,2628.5,2628.3,2.40850377]
[1750065222193,0.76084,2628.5,2628.3,3.16935377]
[1750065222601,0.76085,2628.4,2628.3,3.16935377]
[1750065222797,0.76083,2628.5,2628.4,0.76084]
[1750065223898,0.76083,2628.5,2628.3,3.16917544]
[1750065224204,6.77581,2628.6,2628.5,0.76082]
[1750065224399,0.76082,2628.5,2628.4,1.89394544]
[1750065224906,0.00571059,2628.7,2628.4,1.13311544]
[1750065225096,0.7608,2628.6,2628.5,1.4021]
[1750065225496,0.00571059,2628.7,2628.6,0.76079]
[1750065225901,0.76647059,2628.7,2628.6,0.76079]
[1750065229001,0.76647059,2628.7,2628.5,6.26348684]
[1750065229002,0.76079,2628.6,2628.5,6.26348684]
[1750065229312,0.76079,2628.6,2628.5,2.4313611]
[1750065229504,2.86568684,2628.6,2628.3,1.1320611]
[1750065229811,2.86568684,2628.4,2628.1,1.4144611]
[1750065230106,3.62658684,2628.2,2628.1,0.2824]
[1750065230498,4.86728684,2628.2,2628.1,0.2824]
[1750065232402,28.11028684,2628.2,2628.1,0.2824]
[1750065232601,33.11028684,2628.2,2628.1,0.27668941]
[1750065232906,0.76105,2627.7,2627.6,1.13836794]
[1750065233608,6.77304,2627.8,2627.6,1.13836794]
[1750065233809,6.77304,2627.8,2627.6,1.89942794]
[1750065234111,0.76105,2627.7,2627.6,1.13836794]
[1750065234809,0.76105,2627.7,2627.6,1.89944794]
[1750065235710,6.012,2627.8,2627.6,1.89944794]
[1750065236309,0.76105,2627.7,2627.6,1.89944794]
[1750065238720,0.76105,2627.7,2627.6,1.13836794]
[1750065240125,0.76105,2627.7,2627.6,1.89944794]
[1750065240329,0.76105,2627.7,2627.6,1.13836794]
[1750065240724,2.71745,2627.7,2627.6,0.00571059]
[1750065241217,5.58313684,2627.7,2627.6,0.00571059]
[1750065241924,2.71745,2627.7,2627.6,0.00571059]
[1750065244922,5.58313684,2627.7,2627.6,0.00571059]
[1750065246228,5.6505109,2627.7,2627.6,0.00571059]
[1750065247122,5.58313684,2627.7,2627.6,0.00571059]
[1750065249027,10.58313684,2627.7,2627.6,5.9e-07]
[1750065249232,0.76111,2627.5,2627.4,0.39389]
[1750065249432,1.90313,2627.1,2626.6,5.00835735]
[1750065249734,0.76133,2626.8,2626.6,5.76971735]
[1750065250129,0.76133,2626.8,2626.6,4.63706]
[1750065250823,0.7613,2626.9,2626.6,3.8757]
[1750065251134,0.7613,2626.9,2626.7,3.62700684]
[1750065251831,0.76131,2626.8,2626.7,2.86568684]
[1750065252135,0.76131,2626.8,2626.7,3.62702684]
[1750065252336,0.76131,2626.8,2626.7,0.76134]
[1750065253025,0.76134,2626.7,2626.6,5.76971735]
[1750065253226,0.76134,2626.7,2626.6,5.95256]
[1750065254233,0.76134,2626.7,2626.6,5.1912]
[1750065254629,7.29511059,2627.0,2626.6,5.95257]
[1750065254840,0.76134,2626.7,2626.6,3.8757]
[1750065255534,0.76134,2626.7,2626.6,3.2078]
[1750065258139,0.76137,2626.6,2626.5,0.6402]
[1750065258333,1.37737,2626.6,2626.5,0.6402]
[1750065258532,0.76137,2626.6,2626.5,0.6402]
[1750065259040,0.76137,2626.6,2626.5,1.9311]
[1750065259936,0.7614,2626.5,2626.4,1.13836794]
[1750065260142,0.7614,2626.5,2626.4,0.00571059]
[1750065261441,0.7614,2626.5,2626.4,0.76714059]
[1750065261740,6.7744,2626.5,2626.4,3.63282743]
[1750065262338,6.7744,2626.5,2626.4,2.87139743]
[1750065262542,6.7744,2626.5,2626.4,0.00571059]
[1750065268950,0.7614,2626.5,2626.4,0.00571059]
[1750065269149,6.7744,2626.5,2626.4,0.00571059]
[1750065269550,6.7744,2626.5,2626.4,1.13836794]
[1750065269750,6.7744,2626.5,2626.4,0.00571059]
[1750065270344,6.7744,2626.5,2626.4,1.13836794]
[1750065270839,6.7744,2626.5,2626.4,1.89979794]
[1750065271042,6.7744,2626.5,2626.4,3.17569794]
[1750065271242,0.7614,2626.5,2626.4,6.04138478]
[1750065272156,0.76135,2626.7,2626.6,0.76134]
[1750065272349,0.76135,2626.7,2626.6,6.83482684]
[1750065272750,0.76135,2626.7,2626.6,8.10152684]
[1750065272948,0.76135,2626.7,2626.6,4.4745]
[1750065273152,0.76135,2626.7,2626.6,5.60906723]
[1750065273552,0.76135,2626.7,2626.6,4.4745]
[1750065273751,0.76135,2626.7,2626.6,3.2078]
[1750065273950,0.76137,2626.6,2626.5,1.13456723]
[1750065274253,4.27905684,2626.6,2626.5,1.13456723]
[1750065274455,1.41337,2626.6,2626.5,1.13456723]
[1750065277152,4.27905684,2626.6,2626.5,1.13456723]
[1750065277763,0.7614,2626.5,2626.4,1.14027782]
[1750065278159,0.7614,2626.5,2626.4,0.00571059]
[1750065278657,0.82877406,2626.5,2626.4,0.00571059]
[1750065279657,0.7614,2626.5,2626.4,0.00571059]
[1750065280761,0.82877406,2626.5,2626.4,0.00571059]
[1750065282163,0.82877406,2626.5,2626.4,1.5151254]
[1750065283360,2.11987406,2626.5,2626.4,1.5151254]
[1750065285776,0.82877406,2626.5,2626.4,1.5151254]
[1750065287780,0.7614,2626.5,2626.4,1.5151254]
[1750065288784,0.82877406,2626.5,2626.4,1.5151254]
[1750065292779,0.82877406,2626.5,2626.4,4.38081224]
[1750065292980,0.06737406,2626.5,2626.4,5.14224224]
[1750065293280,0.06737406,2626.5,2626.4,7.19044964]
[1750065293480,0.82877406,2626.5,2626.4,7.19044964]
[1750065293877,0.76138,2626.6,2626.5,0.7614]
[1750065294082,0.76138,2626.6,2626.5,3.9692]
[1750065294382,0.76138,2626.6,2626.5,3.2078]
[1750065294578,0.76138,2626.6,2626.5,4.7271386]
[1750065297289,0.76138,2626.6,2626.5,1.5193386]
[1750065297585,0.76138,2626.6,2626.4,1.29921059]
[1750065297586,5.0,2626.6,2626.4,0.00571059]
[1750065297787,0.7616,2625.8,2625.5,3.5412212]
[1750065298001,0.7616,2625.8,2625.3,3.2078]
[1750065298002,3.51008684,2625.7,2625.6,1.1407011]
[1750065298290,1.54894569,2625.7,2625.3,3.2078]
[1750065298485,0.76149,2626.2,2626.0,0.76154]
[1750065298683,0.90321967,2626.1,2625.9,6.07348684]
[1750065298887,0.6615,2626.5,2625.9,6.07348684]
[1750065299076,1.66452199,2626.4,2626.3,2.86568684]
[1750065299386,0.76144,2626.4,2626.3,2.86568684]
[1750065299578,0.76145,2626.3,2626.2,3.2078]
[1750065300485,0.76145,2626.3,2625.7,0.00382602]
[1750065300486,0.76154,2626.0,2625.9,3.2078]
[1750065300683,0.7616,2625.8,2625.7,0.00382602]
[1750065301385,1.66236957,2625.8,2625.7,0.00382602]
[1750065301593,0.7616,2625.8,2625.7,0.00382602]
[1750065301782,1.3796,2625.8,2625.7,0.00382602]
[1750065302288,2.28008014,2625.8,2625.7,0.00382602]
[1750065303385,1.3796,2625.8,2625.7,0.00382602]
[1750065303891,6.7736,2625.8,2625.7,0.00382602]
[1750065304489,6.012,2626.0,2625.9,0.76155]
[1750065304692,6.012,2626.0,2625.8,4.30006684]
[1750065304891,6.77356,2626.0,2625.8,4.30006684]
[1750065305392,6.77356,2626.0,2625.8,1.43438]
[1750065305692,6.77356,2626.0,2625.9,0.76157]
[1750065305888,0.6351,2626.3,2625.9,3.2078]
[1750065306087,0.76154,2626.1,2625.9,3.2078]
[1750065306289,0.76138,2626.6,2626.4,0.7614]
[1750065306596,7.67344408,2626.5,2626.3,0.76144]
[1750065306786,0.76143,2626.4,2626.2,3.96927]
[1750065306991,6.77341,2626.5,2626.3,0.76143]
[1750065307590,6.012,2626.5,2626.4,0.76143]
[1750065307794,6.7734,2626.5,2626.4,0.76143]
[1750065307996,6.012,2626.5,2626.4,0.76143]
[1750065308188,0.76143,2626.4,2626.3,2.68994]
[1750065308490,6.77341,2626.5,2626.4,0.76143]
[1750065308699,6.012,2626.5,2626.4,0.76143]
[1750065310488,1.39645,2626.7,2626.3,4.79418684]
[1750065310489,0.6351,2626.7,2626.3,4.79418684]
[1750065310686,6.011,2626.6,2626.5,0.7614]
[1750065311602,6.77237,2626.6,2626.5,0.7614]
[1750065311896,6.011,2626.6,2626.5,0.7614]
[1750065312501,6.77237,2626.6,2626.5,0.7614]
[1750065312799,6.011,2626.6,2626.5,0.7614]
[1750065312993,6.77237,2626.6,2626.5,0.7614]
[1750065313701,6.011,2626.6,2626.5,0.7614]
[1750065315101,6.77237,2626.6,2626.5,0.7614]
[1750065315500,6.011,2626.6,2626.5,0.7614]
[1750065317300,0.76154,2626.0,2625.9,0.76156]
[1750065317492,3.62722684,2626.0,2625.8,3.96938]
[1750065317694,0.6618,2625.9,2625.8,3.96938]
[1750065317895,0.76153,2626.1,2625.9,0.76156]
[1750065318111,1.42333,2626.1,2625.9,0.76156]
[1750065318400,0.76154,2626.0,2625.9,0.76156]
[1750065318796,1.42333,2626.1,2626.0,0.76154]
[1750065319202,0.76155,2626.0,2625.9,0.76156]
[1750065319402,1.42334,2626.1,2625.9,0.76156]
[1750065319599,1.42334,2626.1,2626.0,0.76154]
[1750065320100,0.6618,2626.1,2626.0,0.76154]
[1750065320505,1.42331,2626.1,2626.0,0.76154]
[1750065321409,0.76155,2626.0,2625.9,0.76155]
[1750065321803,1.42333,2626.1,2626.0,0.76154]
[1750065322399,2.70683,2626.1,2626.0,0.76154]
[1750065322900,2.70681,2626.1,2626.0,0.76154]
[1750065323501,1.9453,2626.1,2626.0,0.76154]
[1750065323804,1.42331,2626.1,2626.0,0.76154]
[1750065327205,0.6618,2626.1,2626.0,0.76154]
[1750065328004,1.42331,2626.1,2626.0,0.76154]
[1750065330505,0.6618,2626.1,2626.0,0.76154]
[1750065330701,0.6191,2626.2,2626.1,0.76151]
[1750065331107,1.38058,2626.2,2626.1,0.76151]
[1750065331303,0.6191,2626.2,2626.1,0.76151]
[1750065331510,1.38059,2626.2,2626.1,0.76151]
[1750065333015,0.76151,2626.1,2626.0,1.39334]
[1750065334221,0.7616,2625.8,2625.7,0.00382602]
[1750065334510,7.70669865,2625.8,2625.7,0.00382602]
[1750065335025,9.60379865,2625.8,2625.7,0.00382602]
[1750065338519,8.6927,2625.8,2625.7,0.00382602]
[1750065339113,8.6927,2625.8,2625.7,0.76545602]
[1750065339415,1.4139,2625.8,2625.7,0.00382602]
[1750065341107,1.4139,2625.8,2625.7,0.76545602]
[1750065341314,1.4139,2625.8,2625.7,0.00382602]
[1750065342912,1.4139,2625.8,2625.7,0.76545602]
[1750065343408,1.4139,2625.8,2625.7,0.00382602]
[1750065343409,4.53726726,2625.8,2625.7,0.00382602]
[1750065343711,2.7466,2625.8,2625.7,0.00382602]
[1750065344220,7.4637,2625.8,2625.7,0.76545602]
[1750065344415,1.4287,2625.8,2625.7,0.00382602]
[1750065344619,6.035,2625.8,2625.7,0.76545602]
[1750065345525,1.41597,2626.0,2625.9,0.76157]
[1750065345725,0.76157,2625.9,2625.8,0.633]
[1750065346420,0.76157,2625.9,2625.8,1.39458]
[1750065349817,0.68647406,2626.2,2625.8,0.633]
[1750065350130,7.3128,2626.2,2625.8,1.8841]
[1750065350429,0.76157,2625.9,2625.8,1.3946]
[1750065350931,0.82894406,2625.9,2625.8,1.3946]
[1750065351123,0.06737406,2625.9,2625.8,1.3946]
[1750065352027,0.06737406,2625.9,2625.8,5.9096]
[1750065354229,0.76147,2626.3,2626.2,0.76148]
[1750065354529,6.77347,2626.3,2626.2,0.76148]
[1750065354830,7.68589828,2626.3,2626.2,0.76148]
[1750065355333,0.76148,2626.2,2626.1,3.9693]
[1750065355632,1.67391797,2626.2,2626.1,3.96931]
[1750065355827,0.91243797,2626.2,2626.1,3.96931]
[1750065356020,6.012,2626.3,2626.2,0.76148]
[1750065356226,6.9244265,2626.3,2626.2,0.76148]
[1750065356528,7.6858865,2626.3,2626.2,0.6407]
[1750065356729,0.76148,2626.2,2626.1,3.96929]
[1750065356932,0.76148,2626.2,2626.1,0.76149]
[1750065357537,8.87768684,2626.3,2625.9,1.2907]
[1750065357744,0.76157,2625.9,2625.8,3.2078]
[1750065358142,0.82894406,2625.9,2625.8,3.2078]
[1750065358831,3.6946309,2625.9,2625.8,3.2078]
[1750065359036,3.6946309,2625.9,2625.7,0.76544602]
[1750065359037,0.7616,2625.8,2625.7,0.76544602]
[1750065359745,0.7616,2625.8,2625.7,0.00382602]
[1750065360637,1.9865,2625.8,2625.7,0.00382602]
[1750065361440,6.7736,2625.8,2625.7,0.00382602]
[1750065362230,8.0561,2625.8,2625.7,0.00382602]
[1750065365245,8.12347406,2625.8,2625.7,0.00382602]
[1750065366042,6.84097406,2625.8,2625.7,6.02e-06]
[1750065366448,8.06497406,2625.8,2625.7,6.02e-06]
[1750065366846,8.06497406,2625.8,2625.2,0.6696]
[1750065366847,0.76189,2624.8,2624.7,3.2078]
[1750065367053,9.64057684,2624.8,2624.7,3.2078]
[1750065367349,1.2803,2625.0,2624.4,0.6726]
[1750065367649,0.76196,2624.6,2624.4,0.6726]
[1750065367854,0.76197,2624.6,2624.4,0.6726]
[1750065368040,2.87139743,2624.8,2624.4,0.6726]
[1750065368246,0.76197,2624.6,2624.4,0.6726]
[1750065368553,0.76197,2624.6,2624.4,1.4346]
[1750065368851,0.76193,2624.7,2624.5,0.76198]
[1750065369347,0.76193,2624.7,2624.5,0.76196]
[1750065369650,0.76198,2624.5,2624.4,1.43461]
[1750065369840,0.76197,2624.6,2624.4,1.43461]
[1750065370248,0.76198,2624.5,2624.4,1.43461]
[1750065370448,0.76196,2624.6,2624.5,0.76198]
[1750065370643,0.76196,2624.6,2624.4,1.43459]
[1750065370953,0.76195,2624.6,2624.5,0.76198]
[1750065371647,3.63331743,2624.8,2624.4,0.6726]
[1750065371854,6.77592,2624.7,2624.6,0.76193]
[1750065373458,6.014,2624.7,2624.6,0.76193]
[1750065373853,6.01971059,2624.8,2624.7,0.76192]
[1750065374652,6.78160059,2624.8,2624.7,0.76192]
[1750065374859,9.64730743,2624.8,2624.6,0.76193]
[1750065375057,9.64730743,2624.8,2624.7,0.76192]
[1750065376257,0.00571059,2624.8,2624.7,0.76192]
[1750065376552,3.2078,2625.4,2625.3,0.76175]
[1750065376753,6.014,2625.5,2625.4,0.76172]
[1750065377054,0.76167,2625.6,2625.5,0.76166]